fUSD/lending_fUSD_20260621
["ID","MTS","AMOUNT","RATE_DAILY","PERIOD"]
[425907969,1782033090000,-500.0,0.00029589,2]
[425907983,1782033090000,-500.0,0.00029589,2]
[425907997,1782033090000,-507.61,0.00029589,2]
[425907988,1782033090000,-803.37,0.00029589,2]
[425907995,1782033090000,-500.0,0.00029589,2]
[425908001,1782033090000,-383.51892082,0.00029589,2]
[425907990,1782033090000,-500.0,0.00029589,2]
[425908000,1782033090000,-500.0,0.00029589,2]
[425907993,1782033090000,-718.34,0.00029589,2]
[425907994,1782033090000,-500.0,0.00029589,2]
[425907996,1782033090000,-500.0,0.00029589,2]
[425907989,1782033090000,-40687.380737,0.00029589,2]
[425907991,1782033090000,-500.0,0.00029589,2]
[425907986,1782033090000,-1229.86,0.00029589,2]
[425907984,1782033090000,-500.0,0.00029589,2]
[425907992,1782033090000,-500.0,0.00029589,2]
[425908059,1782033091000,-500.0,0.00029589,2]
[425908064,1782033091000,-500.0,0.00029589,2]
[425908055,1782033091000,-500.0,0.00029589,2]
[425908054,1782033091000,-966.1,0.00029589,2]
[425908057,1782033091000,-500.0,0.00029589,2]
[425908058,1782033091000,-436.07883134,0.00029589,2]
[425908056,1782033091000,-164.1897827,0.00029589,2]
[425908061,1782033091000,-4516.02,0.00029589,2]
[425908060,1782033091000,-357.26631943,0.00029589,2]
[425908071,1782033091000,-500.0,0.00029589,2]
[425908062,1782033091000,-1051.17,0.00029589,2]
[425908067,1782033091000,-500.0,0.00029589,2]
[425908070,1782033091000,-500.0,0.00029589,2]
[425908080,1782033091000,-2735.23,0.00029589,2]
[425908079,1782033091000,-4073.97,0.00029589,2]
[425908078,1782033091000,-512.14,0.00029589,2]
[425908065,1782033091000,-513.5,0.00029589,2]
[425908074,1782033091000,-743.54,0.00029589,2]
[425908063,1782033091000,-1096.97,0.00029589,2]
[425908066,1782033091000,-500.0,0.00029589,2]
[425908037,1782033091000,-246.14893503,0.00029589,2]
[425908053,1782033091000,-714.11,0.00029589,2]
[425908073,1782033091000,-500.0,0.00029589,2]
[425908040,1782033091000,-500.0,0.00029589,2]
[425908034,1782033091000,-500.0,0.00029589,2]
[425908035,1782033091000,-500.0,0.00029589,2]
[425908032,1782033091000,-500.0,0.00029589,2]
[425908036,1782033091000,-500.0,0.00029589,2]
[425908039,1782033091000,-500.0,0.00029589,2]
[425908038,1782033091000,-500.0,0.00029589,2]
[425908033,1782033091000,-1053.37,0.00029589,2]
[425908051,1782033091000,-1043.69,0.00029589,2]
[425908041,1782033091000,-622.33,0.00029589,2]
[425908044,1782033091000,-565.61,0.00029589,2]
[425908042,1782033091000,-500.0,0.00029589,2]
[425908045,1782033091000,-500.0,0.00029589,2]
[425908046,1782033091000,-500.0,0.00029589,2]
[425908050,1782033091000,-704.57,0.00029589,2]
[425908052,1782033091000,-500.0,0.00029589,2]
[425908048,1782033091000,-500.0,0.00029589,2]
[425908047,1782033091000,-1419.48,0.00029589,2]
[425908049,1782033091000,-762.22,0.00029589,2]
[425908043,1782033091000,-500.0,0.00029589,2]
[425908077,1782033091000,-1401.64,0.00029589,2]
[425908084,1782033091000,-500.0,0.00029589,2]
[425908075,1782033091000,-500.0,0.00029589,2]
[425908103,1782033091000,-831.38,0.00029589,2]
[425908105,1782033091000,-509.56,0.00029589,2]
[425908104,1782033091000,-500.0,0.00029589,2]
[425908106,1782033091000,-537.11,0.00029589,2]
[425908108,1782033091000,-1301.74,0.00029589,2]
[425908107,1782033091000,-1548.3,0.00029589,2]
[425908109,1782033091000,-500.0,0.00029589,2]
[425908110,1782033091000,-662.83,0.00029589,2]
[425908111,1782033091000,-567.94,0.00029589,2]
[425908113,1782033091000,-1666.17,0.00029589,2]
[425908112,1782033091000,-500.0,0.00029589,2]
[425908115,1782033091000,-516.52,0.00029589,2]
[425908117,1782033091000,-969.71,0.00029589,2]
[425908116,1782033091000,-500.0,0.00029589,2]
[425908118,1782033091000,-500.0,0.00029589,2]
[425908119,1782033091000,-500.0,0.00029589,2]
[425908120,1782033091000,-717.52,0.00029589,2]
[425908121,1782033091000,-586.71,0.00029589,2]
[425908069,1782033091000,-500.0,0.00029589,2]
[425908102,1782033091000,-500.0,0.00029589,2]
[425908098,1782033091000,-1115.01,0.00029589,2]
[425908114,1782033091000,-500.0,0.00029589,2]
[425908100,1782033091000,-500.0,0.00029589,2]
[425908072,1782033091000,-1066.54,0.00029589,2]
[425908097,1782033091000,-500.0,0.00029589,2]
[425908076,1782033091000,-966.14,0.00029589,2]
[425908068,1782033091000,-500.0,0.00029589,2]
[425908088,1782033091000,-500.0,0.00029589,2]
[425908093,1782033091000,-500.0,0.00029589,2]
[425908081,1782033091000,-1496.3,0.00029589,2]
[425908087,1782033091000,-920.55,0.00029589,2]
[425908092,1782033091000,-2160.34,0.00029589,2]
[425908085,1782033091000,-744.26,0.00029589,2]
[425908086,1782033091000,-500.0,0.00029589,2]
[425908091,1782033091000,-4215.0,0.00029589,2]
[425908083,1782033091000,-500.0,0.00029589,2]
[425908082,1782033091000,-500.0,0.00029589,2]
[425908090,1782033091000,-500.0,0.00029589,2]
[425908089,1782033091000,-500.0,0.00029589,2]
[425908099,1782033091000,-596.87,0.00029589,2]
[425908094,1782033091000,-500.0,0.00029589,2]
[425908095,1782033091000,-500.0,0.00029589,2]
[425908096,1782033091000,-606.32,0.00029589,2]
[425908101,1782033091000,-275.51583195,0.00029589,2]
[425908156,1782033092000,-1758.48,0.00029589,2]
[425908157,1782033092000,-531.84,0.00029589,2]
[425908149,1782033092000,-500.0,0.00029589,2]
[425908152,1782033092000,-1000.0,0.00029589,2]
[425908155,1782033092000,-500.0,0.00029589,2]
[425908153,1782033092000,-853.34,0.00029589,2]
[425908147,1782033092000,-1050.19,0.00029589,2]
[425908150,1782033092000,-500.0,0.00029589,2]
[425908154,1782033092000,-566.65,0.00029589,2]
[425908151,1782033092000,-1121.32,0.00029589,2]
[425908159,1782033092000,-500.0,0.00029589,2]
[425908166,1782033092000,-500.0,0.00029589,2]
[425908161,1782033092000,-500.0,0.00029589,2]
[425908164,1782033092000,-500.0,0.00029589,2]
[425908171,1782033092000,-2819.93,0.00029589,2]
[425908163,1782033092000,-500.0,0.00029589,2]
[425908168,1782033092000,-500.0,0.00029589,2]
[425908162,1782033092000,-273.46875095,0.00029589,2]
[425908167,1782033092000,-500.0,0.00029589,2]
[425908169,1782033092000,-500.0,0.00029589,2]
[425908165,1782033092000,-500.0,0.00029589,2]
[425908170,1782033092000,-500.0,0.00029589,2]
[425908158,1782033092000,-3977.44,0.00029589,2]
[425908160,1782033092000,-650.62,0.00029589,2]
[425908148,1782033092000,-500.0,0.00029589,2]
[425908124,1782033092000,-595.47,0.00029589,2]
[425908142,1782033092000,-500.0,0.00029589,2]
[425908173,1782033092000,-539.64,0.00029589,2]
[425908122,1782033092000,-550.71783227,0.00029589,2]
[425908125,1782033092000,-500.0,0.00029589,2]
[425908123,1782033092000,-1068.12,0.00029589,2]
[425908127,1782033092000,-1012.15,0.00029589,2]
[425908126,1782033092000,-1493.19,0.00029589,2]
[425908128,1782033092000,-964.45,0.00029589,2]
[425908130,1782033092000,-500.0,0.00029589,2]
[425908129,1782033092000,-500.0,0.00029589,2]
[425908132,1782033092000,-500.0,0.00029589,2]
[425908131,1782033092000,-500.0,0.00029589,2]
[425908133,1782033092000,-500.0,0.00029589,2]
[425908135,1782033092000,-772.6,0.00029589,2]
[425908136,1782033092000,-1073.5,0.00029589,2]
[425908139,1782033092000,-500.0,0.00029589,2]
[425908145,1782033092000,-500.0,0.00029589,2]
[425908140,1782033092000,-503.69,0.00029589,2]
[425908137,1782033092000,-500.0,0.00029589,2]
[425908138,1782033092000,-391.66588181,0.00029589,2]
[425908143,1782033092000,-500.0,0.00029589,2]
[425908134,1782033092000,-836.7,0.00029589,2]
[425908144,1782033092000,-500.0,0.00029589,2]
[425908141,1782033092000,-911.52,0.00029589,2]
[425908146,1782033092000,-3456.59,0.00029589,2]
[425908183,1782033092000,-500.0,0.00029589,2]
[425908216,1782033092000,-150.297311,0.00029731,28]
[425908178,1782033092000,-500.0,0.00029589,2]
[425908200,1782033092000,-500.0,0.00029589,2]
[425908201,1782033092000,-500.0,0.00029589,2]
[425908198,1782033092000,-500.0,0.00029589,2]
[425908202,1782033092000,-500.0,0.00029589,2]
[425908205,1782033092000,-827.33,0.00029589,2]
[425908212,1782033092000,-2110.0,0.00029637,2]
[425908209,1782033092000,-1078.52515517,0.00029589,12]
[425908213,1782033092000,-167.81,0.000297,7]
[425908220,1782033092000,-260.4,0.000298,2]
[425908218,1782033092000,-746.72,0.00029795,2]
[425908210,1782033092000,-1095360.52701044,0.00029601,2]
[425908214,1782033092000,-982.13,0.000297,7]
[425908215,1782033092000,-182.84701666,0.00029702,14]
[425908211,1782033092000,-1417.0,0.00029604,2]
[425908217,1782033092000,-500.69034044,0.0002975,2]
[425908227,1782033092000,-5000.0,0.00029805,2]
[425908221,1782033092000,-299.54,0.000298,2]
[425908219,1782033092000,-260.4,0.000298,2]
[425908222,1782033092000,-399.39,0.000298,2]
[425908225,1782033092000,-280.15,0.000298,2]
[425908226,1782033092000,-215.61523197,0.00029804,2]
[425908224,1782033092000,-224.66,0.000298,2]
[425908172,1782033092000,-500.0,0.00029589,2]
[425908204,1782033092000,-2177.43,0.00029589,2]
[425908196,1782033092000,-1479.66,0.00029589,2]
[425908223,1782033092000,-205.11,0.000298,2]
[425908199,1782033092000,-791.72,0.00029589,2]
[425908206,1782033092000,-1181.09,0.00029589,2]
[425908177,1782033092000,-500.0,0.00029589,2]
[425908181,1782033092000,-500.0,0.00029589,2]
[425908182,1782033092000,-629.92,0.00029589,2]
[425908176,1782033092000,-500.0,0.00029589,2]
[425908174,1782033092000,-500.0,0.00029589,2]
[425908180,1782033092000,-500.0,0.00029589,2]
[425908179,1782033092000,-651.67,0.00029589,2]
[425908192,1782033092000,-500.0,0.00029589,2]
[425908195,1782033092000,-500.0,0.00029589,2]
[425908185,1782033092000,-500.0,0.00029589,2]
[425908191,1782033092000,-500.0,0.00029589,2]
[425908175,1782033092000,-500.0,0.00029589,2]
[425908187,1782033092000,-904.85,0.00029589,2]
[425908190,1782033092000,-500.0,0.00029589,2]
[425908203,1782033092000,-500.0,0.00029589,2]
[425908197,1782033092000,-2754.08,0.00029589,2]
[425908193,1782033092000,-1002.37,0.00029589,2]
[425908207,1782033092000,-2292.48,0.00029589,2]
[425908188,1782033092000,-550.42,0.00029589,2]
[425908194,1782033092000,-500.0,0.00029589,2]
[425908189,1782033092000,-398.34860027,0.00029589,2]
[425908184,1782033092000,-500.0,0.00029589,2]
[425908186,1782033092000,-712.88,0.00029589,2]
[425908208,1782033092000,-506.67,0.00029589,2]
[425908252,1782033093000,-500.0,0.00029863,2]
[425908255,1782033093000,-500.0,0.00029863,2]
[425908261,1782033093000,-500.0,0.00029863,2]
[425908254,1782033093000,-500.0,0.00029863,2]
[425908253,1782033093000,-762.48,0.00029863,2]
[425908256,1782033093000,-580.07,0.00029863,2]
[425908268,1782033093000,-500.0,0.00029863,2]
[425908258,1782033093000,-500.0,0.00029863,2]
[425908269,1782033093000,-500.0,0.00029863,2]
[425908257,1782033093000,-500.0,0.00029863,2]
[425908263,1782033093000,-500.0,0.00029863,2]
[425908259,1782033093000,-1264.4,0.00029863,2]
[425908265,1782033093000,-645.65,0.00029863,2]
[425908262,1782033093000,-500.0,0.00029863,2]
[425908266,1782033093000,-500.0,0.00029863,2]
[425908267,1782033093000,-500.0,0.00029863,2]
[425908272,1782033093000,-500.0,0.00029863,2]
[425908270,1782033093000,-500.0,0.00029863,2]
[425908250,1782033093000,-500.0,0.00029863,2]
[425908271,1782033093000,-500.0,0.00029863,2]
[425908260,1782033093000,-635.9,0.00029863,2]
[425908251,1782033093000,-500.0,0.00029863,2]
[425908235,1782033093000,-500.0,0.00029863,2]
[425908249,1782033093000,-500.0,0.00029863,2]
[425908275,1782033093000,-500.0,0.00029863,2]
[425908231,1782033093000,-500.0,0.00029863,2]
[425908228,1782033093000,-39749.1522536,0.00029808,2]
[425908230,1782033093000,-227.89,0.00029863,2]
[425908229,1782033093000,-501.82455083,0.00029863,2]
[425908232,1782033093000,-500.0,0.00029863,2]
[425908234,1782033093000,-500.0,0.00029863,2]
[425908233,1782033093000,-534.17,0.00029863,2]
[425908237,1782033093000,-634.94,0.00029863,2]
[425908247,1782033093000,-500.0,0.00029863,2]
[425908236,1782033093000,-1203.65,0.00029863,2]
[425908240,1782033093000,-500.0,0.00029863,2]
[425908242,1782033093000,-500.0,0.00029863,2]
[425908241,1782033093000,-500.0,0.00029863,2]
[425908238,1782033093000,-500.0,0.00029863,2]
[425908244,1782033093000,-780.63,0.00029863,2]
[425908243,1782033093000,-500.0,0.00029863,2]
[425908248,1782033093000,-500.0,0.00029863,2]
[425908245,1782033093000,-578.39,0.00029863,2]
[425908246,1782033093000,-500.0,0.00029863,2]
[425908239,1782033093000,-793.21,0.00029863,2]
[425908274,1782033093000,-528.51,0.00029863,2]
[425908264,1782033093000,-819.65,0.00029863,2]
[425908273,1782033093000,-586.57621916,0.00029863,2]
[425908298,1782033093000,-500.0,0.00029863,2]
[425908306,1782033093000,-547.24,0.00029863,2]
[425908299,1782033093000,-898.43,0.00029863,2]
[425908305,1782033093000,-769.83,0.00029863,2]
[425908303,1782033093000,-188.70572167,0.00029863,2]
[425908301,1782033093000,-500.0,0.00029863,2]
[425908302,1782033093000,-500.0,0.00029863,2]
[425908309,1782033093000,-761.39,0.00029863,2]
[425908320,1782033093000,-591.97,0.00029863,2]
[425908315,1782033093000,-500.0,0.00029863,2]
[425908312,1782033093000,-693.99,0.00029863,2]
[425908308,1782033093000,-500.0,0.00029863,2]
[425908311,1782033093000,-500.0,0.00029863,2]
[425908314,1782033093000,-500.0,0.00029863,2]
[425908316,1782033093000,-500.0,0.00029863,2]
[425908319,1782033093000,-500.0,0.00029863,2]
[425908313,1782033093000,-500.0,0.00029863,2]
[425908317,1782033093000,-546.86,0.00029863,2]
[425908318,1782033093000,-500.0,0.00029863,2]
[425908321,1782033093000,-592.61,0.00029863,2]
[425908281,1782033093000,-577.92,0.00029863,2]
[425908300,1782033093000,-500.0,0.00029863,2]
[425908307,1782033093000,-500.0,0.00029863,2]
[425908310,1782033093000,-504.3,0.00029863,2]
[425908297,1782033093000,-500.0,0.00029863,2]
[425908279,1782033093000,-500.0,0.00029863,2]
[425908304,1782033093000,-716.64,0.00029863,2]
[425908277,1782033093000,-500.0,0.00029863,2]
[425908278,1782033093000,-975.96,0.00029863,2]
[425908276,1782033093000,-500.0,0.00029863,2]
[425908283,1782033093000,-500.0,0.00029863,2]
[425908293,1782033093000,-1290.56,0.00029863,2]
[425908294,1782033093000,-500.0,0.00029863,2]
[425908291,1782033093000,-500.0,0.00029863,2]
[425908289,1782033093000,-500.0,0.00029863,2]
[425908280,1782033093000,-840.08,0.00029863,2]
[425908287,1782033093000,-1076.52,0.00029863,2]
[425908292,1782033093000,-500.0,0.00029863,2]
[425908286,1782033093000,-500.0,0.00029863,2]
[425908290,1782033093000,-924.09,0.00029863,2]
[425908282,1782033093000,-500.0,0.00029863,2]
[425908284,1782033093000,-500.0,0.00029863,2]
[425908288,1782033093000,-1703.68,0.00029863,2]
[425908296,1782033093000,-1165.13,0.00029863,2]
[425908285,1782033093000,-1347.78,0.00029863,2]
[425908295,1782033093000,-500.0,0.00029863,2]
[425908365,1782033094000,-737.18,0.00029863,2]
[425908364,1782033094000,-500.0,0.00029863,2]
[425908361,1782033094000,-500.0,0.00029863,2]
[425908372,1782033094000,-500.0,0.00029863,2]
[425908371,1782033094000,-1737.27,0.00029863,2]
[425908356,1782033094000,-500.0,0.00029863,2]
[425908360,1782033094000,-500.0,0.00029863,2]
[425908355,1782033094000,-603.17,0.00029863,2]
[425908357,1782033094000,-504.73971594,0.00029863,2]
[425908358,1782033094000,-500.0,0.00029863,2]
[425908362,1782033094000,-784.62,0.00029863,2]
[425908351,1782033094000,-582.99,0.00029863,2]
[425908373,1782033094000,-500.0,0.00029863,2]
[425908366,1782033094000,-500.0,0.00029863,2]
[425908384,1782033094000,-746.04,0.00029863,2]
[425908368,1782033094000,-500.0,0.00029863,2]
[425908367,1782033094000,-568.75,0.00029863,2]
[425908370,1782033094000,-500.0,0.00029863,2]
[425908374,1782033094000,-875.57,0.00029863,2]
[425908376,1782033094000,-194.64207384,0.00029863,2]
[425908377,1782033094000,-921.6,0.00029863,2]
[425908380,1782033094000,-500.0,0.00029863,2]
[425908375,1782033094000,-779.95,0.00029863,2]
[425908378,1782033094000,-661.95,0.00029863,2]
[425908379,1782033094000,-500.0,0.00029863,2]
[425908383,1782033094000,-500.0,0.00029863,2]
[425908382,1782033094000,-713.9,0.00029863,2]
[425908381,1782033094000,-500.0,0.00029863,2]
[425908352,1782033094000,-500.0,0.00029863,2]
[425908369,1782033094000,-1018.86,0.00029863,2]
[425908348,1782033094000,-500.0,0.00029863,2]
[425908330,1782033094000,-595.36,0.00029863,2]
[425908349,1782033094000,-500.0,0.00029863,2]
[425908386,1782033094000,-530.73,0.00029863,2]
[425908332,1782033094000,-518.43737722,0.00029863,2]
[425908323,1782033094000,-530.82,0.00029863,2]
[425908324,1782033094000,-500.0,0.00029863,2]
[425908327,1782033094000,-500.0,0.00029863,2]
[425908326,1782033094000,-501.06783589,0.00029863,2]
[425908333,1782033094000,-658.23,0.00029863,2]
[425908328,1782033094000,-421.84964275,0.00029863,2]
[425908329,1782033094000,-500.0,0.00029863,2]
[425908325,1782033094000,-500.0,0.00029863,2]
[425908322,1782033094000,-500.0,0.00029863,2]
[425908331,1782033094000,-500.0,0.00029863,2]
[425908335,1782033094000,-516.55,0.00029863,2]
[425908334,1782033094000,-500.0,0.00029863,2]
[425908345,1782033094000,-500.0,0.00029863,2]
[425908347,1782033094000,-500.0,0.00029863,2]
[425908337,1782033094000,-612.83,0.00029863,2]
[425908346,1782033094000,-500.0,0.00029863,2]
[425908336,1782033094000,-500.0,0.00029863,2]
[425908342,1782033094000,-509.25,0.00029863,2]
[425908344,1782033094000,-500.0,0.00029863,2]
[425908339,1782033094000,-533.88,0.00029863,2]
[425908341,1782033094000,-605.51232228,0.00029863,2]
[425908338,1782033094000,-550.74,0.00029863,2]
[425908343,1782033094000,-921.72,0.00029863,2]
[425908340,1782033094000,-562.16,0.00029863,2]
[425908350,1782033094000,-500.0,0.00029863,2]
[425908354,1782033094000,-500.0,0.00029863,2]
[425908359,1782033094000,-629.68,0.00029863,2]
[425908353,1782033094000,-1066.62,0.00029863,2]
[425908385,1782033094000,-500.0,0.00029863,2]
[425908363,1782033094000,-664.29,0.00029863,2]
[425908387,1782033094000,-500.0,0.00029863,2]
[425908419,1782033094000,-500.0,0.00029863,2]
[425908420,1782033094000,-676.98,0.00029863,2]
[425908421,1782033094000,-662.0,0.00029863,2]
[425908422,1782033094000,-500.0,0.00029863,2]
[425908424,1782033094000,-500.0,0.00029863,2]
[425908423,1782033094000,-556.35,0.00029863,2]
[425908429,1782033094000,-500.0,0.00029863,2]
[425908427,1782033094000,-500.0,0.00029863,2]
[425908430,1782033094000,-782.46,0.00029863,2]
[425908428,1782033094000,-1574.14,0.00029863,2]
[425908437,1782033094000,-1113.05,0.00029863,2]
[425908431,1782033094000,-539.05,0.00029863,2]
[425908434,1782033094000,-500.0,0.00029863,2]
[425908435,1782033094000,-417.33417613,0.00029863,2]
[425908432,1782033094000,-500.0,0.00029863,2]
[425908439,1782033094000,-500.0,0.00029863,2]
[425908433,1782033094000,-500.0,0.00029863,2]
[425908438,1782033094000,-519.31,0.00029863,2]
[425908436,1782033094000,-500.0,0.00029863,2]
[425908441,1782033094000,-500.0,0.00029863,2]
[425908440,1782033094000,-500.0,0.00029863,2]
[425908451,1782033094000,-500.0,0.00029863,2]
[425908449,1782033094000,-500.0,0.00029863,2]
[425908450,1782033094000,-500.0,0.00029863,2]
[425908444,1782033094000,-572.27,0.00029863,2]
[425908443,1782033094000,-500.0,0.00029863,2]
[425908442,1782033094000,-500.0,0.00029863,2]
[425908447,1782033094000,-500.0,0.00029863,2]
[425908445,1782033094000,-500.0,0.00029863,2]
[425908418,1782033094000,-500.0,0.00029863,2]
[425908417,1782033094000,-153.89029308,0.00029863,2]
[425908448,1782033094000,-500.0,0.00029863,2]
[425908415,1782033094000,-489.50761162,0.00029863,2]
[425908426,1782033094000,-324.66335066,0.00029863,2]
[425908398,1782033094000,-167.11747935,0.00029863,2]
[425908400,1782033094000,-500.0,0.00029863,2]
[425908399,1782033094000,-500.0,0.00029863,2]
[425908390,1782033094000,-1516.79,0.00029863,2]
[425908389,1782033094000,-500.0,0.00029863,2]
[425908394,1782033094000,-500.0,0.00029863,2]
[425908392,1782033094000,-500.0,0.00029863,2]
[425908391,1782033094000,-500.0,0.00029863,2]
[425908393,1782033094000,-859.42,0.00029863,2]
[425908396,1782033094000,-500.0,0.00029863,2]
[425908395,1782033094000,-500.0,0.00029863,2]
[425908397,1782033094000,-500.0,0.00029863,2]
[425908403,1782033094000,-500.0,0.00029863,2]
[425908405,1782033094000,-40687.380737,0.00029863,2]
[425908388,1782033094000,-667.5,0.00029863,2]
[425908402,1782033094000,-1229.86,0.00029863,2]
[425908413,1782033094000,-507.61,0.00029863,2]
[425908414,1782033094000,-512.8,0.00029863,2]
[425908416,1782033094000,-500.0,0.00029863,2]
[425908425,1782033094000,-1114.23,0.00029863,2]
[425908409,1782033094000,-718.34,0.00029863,2]
[425908410,1782033094000,-500.0,0.00029863,2]
[425908408,1782033094000,-500.0,0.00029863,2]
[425908404,1782033094000,-803.37,0.00029863,2]
[425908407,1782033094000,-500.0,0.00029863,2]
[425908446,1782033094000,-1053.37,0.00029863,2]
[425908401,1782033094000,-500.0,0.00029863,2]
[425908412,1782033094000,-500.0,0.00029863,2]
[425908406,1782033094000,-500.0,0.00029863,2]
[425908411,1782033094000,-500.0,0.00029863,2]
[425908492,1782033095000,-500.0,0.00029863,2]
[425908493,1782033095000,-500.0,0.00029863,2]
[425908494,1782033095000,-744.26,0.00029863,2]
[425908502,1782033095000,-500.0,0.00029863,2]
[425908503,1782033095000,-500.0,0.00029863,2]
[425908480,1782033095000,-500.0,0.00029863,2]
[425908490,1782033095000,-1496.3,0.00029863,2]
[425908483,1782033095000,-743.54,0.00029863,2]
[425908485,1782033095000,-966.14,0.00029863,2]
[425908487,1782033095000,-512.14,0.00029863,2]
[425908482,1782033095000,-500.0,0.00029863,2]
[425908491,1782033095000,-500.0,0.00029863,2]
[425908496,1782033095000,-920.55,0.00029863,2]
[425908498,1782033095000,-500.0,0.00029863,2]
[425908497,1782033095000,-500.0,0.00029863,2]
[425908499,1782033095000,-500.0,0.00029863,2]
[425908495,1782033095000,-500.0,0.00029863,2]
[425908501,1782033095000,-2160.34,0.00029863,2]
[425908489,1782033095000,-2735.23,0.00029863,2]
[425908505,1782033095000,-606.32,0.00029863,2]
[425908506,1782033095000,-500.0,0.00029863,2]
[425908504,1782033095000,-500.0,0.00029863,2]
[425908516,1782033095000,-500.0,0.00029863,2]
[425908508,1782033095000,-596.87,0.00029863,2]
[425908507,1782033095000,-1115.01,0.00029863,2]
[425908511,1782033095000,-831.38,0.00029863,2]
[425908515,1782033095000,-1548.3,0.00029863,2]
[425908509,1782033095000,-500.0,0.00029863,2]
[425908500,1782033095000,-4215.0,0.00029863,2]
[425908486,1782033095000,-1401.64,0.00029863,2]
[425908473,1782033095000,-500.0,0.00029863,2]
[425908481,1782033095000,-1066.54,0.00029863,2]
[425908513,1782033095000,-537.11,0.00029863,2]
[425908452,1782033095000,-500.0,0.00029863,2]
[425908454,1782033095000,-500.0,0.00029863,2]
[425908453,1782033095000,-622.33,0.00029863,2]
[425908462,1782033095000,-704.57,0.00029863,2]
[425908463,1782033095000,-1043.69,0.00029863,2]
[425908457,1782033095000,-588.53062059,0.00029863,2]
[425908464,1782033095000,-500.0,0.00029863,2]
[425908458,1782033095000,-500.0,0.00029863,2]
[425908460,1782033095000,-500.0,0.00029863,2]
[425908465,1782033095000,-714.11,0.00029863,2]
[425908455,1782033095000,-500.0,0.00029863,2]
[425908459,1782033095000,-1419.48,0.00029863,2]
[425908488,1782033095000,-4073.97,0.00029863,2]
[425908461,1782033095000,-762.22,0.00029863,2]
[425908467,1782033095000,-500.0,0.00029863,2]
[425908477,1782033095000,-500.0,0.00029863,2]
[425908466,1782033095000,-966.1,0.00029863,2]
[425908468,1782033095000,-500.0,0.00029863,2]
[425908469,1782033095000,-500.0,0.00029863,2]
[425908470,1782033095000,-4516.02,0.00029863,2]
[425908474,1782033095000,-513.5,0.00029863,2]
[425908475,1782033095000,-500.0,0.00029863,2]
[425908472,1782033095000,-1051.17,0.00029863,2]
[425908476,1782033095000,-500.0,0.00029863,2]
[425908471,1782033095000,-1096.97,0.00029863,2]
[425908479,1782033095000,-500.0,0.00029863,2]
[425908484,1782033095000,-500.0,0.00029863,2]
[425908456,1782033095000,-565.61,0.00029863,2]
[425908478,1782033095000,-500.0,0.00029863,2]
[425908517,1782033095000,-662.83,0.00029863,2]
[425908512,1782033095000,-509.56,0.00029863,2]